Cogmind - Beta 15 @@@ ROGUE MODE // 2025.10.04 @ 10:58:51 Player: shapeshifter Result: Destroyed by as-88910 with Assembled Heavy Rifle Performance ------------- Evolutions (0) 0 Regions Visited (2) 400 Robots Destroyed (20) 100 Value Destroyed (234) 234 Prototype IDs (2) 40 Alien Tech Used (0) 0 Bonus (0) 0 TOTAL SCORE: 774 Bonus ------- None Cogmind --------- Core Integrity 0/250 Matter 128/300 Energy 100/100 System Corruption 0% Temperature Cool (0) Movement Core (450) Ox8 Location -10/Mines Parts ------- > --- POWER (1) -------- (None) > --- PROPULSION (2) --- (None) > --- UTILITY (2) ------ Large Storage Unit > --- WEAPON (2) ------- Light Assault Rifle Rocket Launcher > --- INVENTORY (15) --- Heat Sink Targeting Computer ECM Suite Light Armor Plating Light Armor Plating Light Armor Plating Light EM Pulse Cannon Light EM Pulse Cannon Light EM Pulse Cannon Light EM Pulse Cannon Assault Rifle Rocket Launcher Rocket Launcher Rocket Launcher Peak State ------------ > --- POWER ------------ Ion Engine > --- PROPULSION ------- Compact Wheel Compact Wheel > --- UTILITY ---------- Large Storage Unit Seismic Detector > --- WEAPON ----------- Assault Rifle Assault Rifle > --- INVENTORY -------- Targeting Computer ECM Suite Light Armor Plating Light Armor Plating Light Armor Plating Light Armor Plating Light EM Pulse Cannon Light EM Pulse Cannon Light EM Pulse Cannon Light Assault Rifle Rocket Launcher Rocket Launcher Rocket Launcher Rocket Launcher [Rating: 9] Favorites ----------- Power Ion Engine Engine Ion Engine Propulsion Light Treads Treads Light Treads Wheel Compact Wheel Utility Seismic Detector Device Seismic Detector Storage Small Storage Unit Protection Light Armor Plating Weapon Assault Rifle Energy Gun Medium Laser Ballistic Gun Assault Rifle Launcher Grenade Launcher Build | -11 -10 -10 ------- Run | Yrd Mat Min Slots Evolved . | . . . Power . | . . . Propulsion . | . . . Utility . | . . . Weapon . | . . . Parts Attached 19 | 7 11 1 Power 3 | 1 2 . Engine 3 | 1 2 . Core . | . . . Reactor . | . . . Propulsion 4 | 2 2 . Treads 2 | 2 . . Leg . | . . . Wheel 2 | . 2 . Hover . | . . . Flight . | . . . Utility 5 | 2 3 . Device 2 | 1 1 . Storage 2 | 1 1 . Processor . | . . . Hackware . | . . . Protection 1 | . 1 . Artifact . | . . . Weapon 7 | 2 4 1 Energy Gun 1 | 1 . . Energy Cannon . | . . . Ballistic Gun 4 | 1 3 . Ballistic Cannon . | . . . Launcher 2 | . 1 1 Special Weapon . | . . . Impact Weapon . | . . . Slashing Weapon . | . . . Piercing Weapon . | . . . Special Melee Weapon . | . . . Unidentified Prototypes . | . . . Parts Lost 4 | . 1 3 Power 1 | . . 1 Propulsion 2 | . 1 1 Utility 1 | . . 1 Weapon . | . . . Highest Loss Streak 3 | . 1 3 To Critical Strikes . | . . . Average Backups 8 | 4 9 14 Power . | . . . Propulsion 1 | 1 1 . Utility 4 | . 4 6 Weapon 3 | . 3 8 Tool/Special . | . . . Unused Backups 16 | . 3 13 Power . | . . . Propulsion . | . . . Utility 8 | . 2 6 Weapon 8 | . 1 7 Tool/Special . | . . . Average Slot Usage (%) 98 | . 98 78 Engine 14 | . 14 14 Treads 14 | . 14 . Wheel 12 | . 12 14 Device 11 | . 11 . Storage 14 | . 14 14 Protection 2 | . 2 7 Energy Gun 4 | . 4 . Ballistic Gun 22 | . 22 21 Peak Build Rating 9 | 7 9 9 Average Rating 7 | 5 7 7 On Entrance 5 | . 7 8 Naked Turns . | . . . Heaviest Build 32 | 14 32 31 Greatest Support 40 | 40 40 16 Greatest Overweight (x) 1 | . 1 1 Average Overweight (x) . | . . 1 Largest Inventory Capacity 15 | 8 15 15 Average Capacity 9 | 7 9 15 Most Carried 15 | 6 15 14 Average Carried 8 | 4 9 14 Final Capacity 15 | 8 15 15 Final Carried 14 | 6 14 14 Class Distribution -------------------- 100% | Mutant Dominant Class ---------------- Mutant | -10/Materials Mutant | -10/Mines Resources | -11 -10 -10 ----------- Run | Yrd Mat Min Matter Collected 590 | 281 309 . Remotely . | . . . Salvage Created 521 | 160 313 48 Parts 38 | 12 26 . Haulers Intercepted 2 | . 2 . Recyclers Shooed . | . . . Parts Field Recycled . | . . . Retrieved Matter . | . . . Parts Self-Destructed . | . . . Prevented . | . . . Kills | -11 -10 -10 ------- Run | Yrd Mat Min Combat Hostiles Destroyed 23 | . 11 12 Guns 8 | . 8 . AOE 15 | . 3 12 Classes Destroyed 9 | 2 6 1 Worker 1 | . 1 . Builder 1 | . 1 . Tunneler 3 | 3 . . Hauler 2 | . 2 . Recycler 1 | 1 . . Watcher 1 | . 1 . Swarmer 9 | . 9 . Grunt 2 | . 2 . Assembled 12 | . . 12 Best Kill Streak 12 | 2 7 12 Combat Bots Only 12 | . 5 12 Max Kills in Single Turn 4 | 1 2 4 Gunslinging . | . . . Exploded 4 | . 2 4 Melee . | . . . Uniques/NPCs Destroyed . | . . . Combat | -11 -10 -10 -------- Run | Yrd Mat Min Hostile Shots Fired 118 | . 100 18 Missed 27 | . 23 4 Hits 91 | . 77 14 Melee 2 | . . 2 Projectile 89 | . 77 12 Critical Strikes 2 | . . 2 Damage Taken 1074 | . 769 305 Core 262 | . 113 149 Absorbed by Shields . | . . . Core Remaining (%) 100 | 100 . . Volleys Fired 81 | 11 66 4 Largest 2 | 2 2 1 Hottest 70 | 70 70 33 Shots Fired 149 | 22 123 4 Gun 141 | 22 119 . Cannon . | . . . Launcher 8 | . 4 4 Special . | . . . Kinetic 108 | 11 97 . Thermal 33 | 11 22 . Explosive 8 | . 4 4 Electromagnetic . | . . . Robot Hit Streak 8 | 8 7 . Robot Miss Streak 7 | 3 7 2 Penetration Max . | . . . Secondary Targets 1 | . 1 . Max Gunslinging Chain 1 | . 1 . Shots Hit Robots 75 | 14 61 . Core Hits 57 | 6 24 27 Critical Kills . | . . . Critical Parts Destroyed 1 | . 1 . Critical Strikes 4 | 2 2 . Burn 3 | 2 1 . Destroy 1 | . 1 . Melee Attacks . | . . . Impact . | . . . Slashing . | . . . Piercing . | . . . Sneak Attacks . | . . . Combat Hostiles . | . . . Follow-up Attacks . | . . . Damage Inflicted 1893 | 152 946 795 Guns 869 | 152 717 . Cannons . | . . . Explosions 1024 | . 229 795 Melee . | . . . Ramming . | . . . Kinetic 595 | 28 567 . Thermal 274 | 124 150 . Explosive 1024 | . 229 795 Electromagnetic . | . . . Impact . | . . . Slashing . | . . . Piercing . | . . . Highest Corruption . | . . . Average Corruption . | . . . Corruption Purged . | . . . Corruption Blocked . | . . . Overload Shots . | . . . Overflow Damage 33 | . 26 7 Projectiles . | . . . Explosions 33 | . 26 7 Melee . | . . . Knockbacks . | . . . Impact . | . . . Kinetic . | . . . Secondary . | . . . Self-Inflicted Damage 93 | . . 93 Shots 3 | . . 3 Rammed . | . . . Targets Rammed . | . . . Kicked . | . . . Crushed . | . . . Highest Temperature 250 | 102 250 22 Average Temperature 71 | 45 81 10 Received Heat Transfer 243 | . 183 60 Siege Activations . | . . . Martial Activations . | . . . Shielding Activations . | . . . Robots Disrupted . | . . . Combat Hostiles . | . . . Robots Corrupted . | . . . Combat Hostiles . | . . . Parts Fried . | . . . Impact Corruptions . | . . . Robots Melted . | . . . Combat Hostiles . | . . . Parts Melted . | . . . Heat Transferred 1036 | 518 518 . Parts Sabotaged . | . . . Parts Stolen . | . . . Parts Stripped . | . . . Power Chain Reactions . | . . . Alert | -11 -10 -10 ------- Run | Yrd Mat Min Maximum Alert Level 1 | . 1 . Low Security (%) 88 | 100 86 100 Level 1 11 | . 13 . Level 2 . | . . . Level 3 . | . . . Level 4 . | . . . Level 5 . | . . . High Security . | . . . Max Security . | . . . Peak Influence 236 | 5 236 76 Initial 63 | . . 63 Average 106 | 1 123 58 Influence Increases 512 | 20 469 23 Destroy 0b10 Robot/C 220 | . 220 . Destroy 0b10 Robot/NC 45 | 20 25 . Destroy Leader 46 | . 46 . Successful Hack 32 | . 32 . Select Force Hacks 60 | . 60 . Disable Machine 15 | . 15 . Destroy Structure 49 | . 26 23 Lose Combat Pursuer 45 | . 45 . Influence Decreases 456 | 20 307 129 Entered New Map 99 | . . 99 Time Decay 317 | 20 297 . Lost Part 40 | . 10 30 Squads Dispatched 2 | . 2 . Investigation 2 | . 2 . Extermination . | . . . Reinforcement . | . . . Assault . | . . . Garrison . | . . . Intercept . | . . . Searches Triggered . | . . . Construction Impeded . | . . . Haulers Reinforced . | . . . Active Scanning Responses . | . . . Cargo Convoy Interrupts . | . . . Stealth | -11 -10 -10 --------- Run | Yrd Mat Min Distress Signals 1 | . 1 . Communications Jammed . | . . . Distress Signals . | . . . Times Spotted 45 | . 24 21 Peak Tracking Total 20 | . 4 20 Tactical Retreats 2 | . 2 . Traps | -11 -10 -10 ------- Run | Yrd Mat Min Traps Triggered 1 | . 1 . Indirectly . | . . . Trap Hack Attempts . | . . . Triggered . | . . . Disarmed . | . . . Reprogrammed . | . . . Reused . | . . . Traps Extracted . | . . . Installed . | . . . Triggered . | . . . Machines | -11 -10 -10 ---------- Run | Yrd Mat Min Machines Disabled 1 | . 1 . Max in Single Turn 1 | . 1 . Machines Repaired . | . . . Machines Dismantled . | . . . Machines Sabotaged . | . . . Overloaded Fab Kills . | . . . Hacking | -11 -10 -10 --------- Run | Yrd Mat Min Machines Accessed 7 | . 7 . Terminals 5 | . 5 . Fabricators . | . . . Repair Stations . | . . . Recycling Units 2 | . 2 . Scanalyzers . | . . . Garrison Access . | . . . Total Hacks 21 | . 21 . Successful 15 | . 15 . Failed 6 | . 6 . Catastrophic 1 | . 1 . Database Lockouts . | . . . Manual 17 | . 17 . Terminals 16 | . 16 . Fabricators . | . . . Repair Stations . | . . . Recycling Units 5 | . 5 . Scanalyzers . | . . . Garrison Access . | . . . Terminal Hacks 5 | . 5 . Prototype ID Bank 1 | . 1 . Registered Components 2 | . 2 . Zone Layout 2 | . 2 . Fabricator Hacks . | . . . Repair Station Hacks . | . . . Recycling Unit Hacks 2 | . 2 . Retrieve Components 2 | . 2 . Scanalyzer . | . . . Garrison Access Hacks . | . . . Unauthorized Hacks 8 | . 8 . Terminals 6 | . 6 . Botnet 2 | . 2 . Skim 4 | . 4 . Fabricators . | . . . Repair Stations . | . . . Recycling Units 2 | . 2 . Tunnel 2 | . 2 . Scanalyzers . | . . . Garrison Access . | . . . Data Cores Recovered . | . . . Used . | . . . Hacking Detections 6 | . 6 . Full Trace Events . | . . . Feedback Events . | . . . Feedback Blocked . | . . . Robot Schematics Acquired . | . . . Robots Built . | . . . Authchips . | . . . Time . | . . . Total Robot Build Rating . | . . . Part Schematics Acquired . | . . . Parts Built . | . . . Authchips . | . . . Time . | . . . Total Part Build Rating . | . . . Parts Repaired . | . . . Time . | . . . Parts Recycled . | . . . Recycled Matter . | . . . Retrieved Matter . | . . . Retrieved Components . | . . . Parts Scanalyzed . | . . . Part Schematics Acquired . | . . . Parts Damaged . | . . . Bothacking | -11 -10 -10 ------------ Run | Yrd Mat Min Used RIF Installer . | . . . Robots Hacked . | . . . Non-combat . | . . . Combat . | . . . Robot Hacks Applied . | . . . Relay Couplers Released . | . . . Fabnet Peak Effective % . | . . . Robots Rewired . | . . . Allies Hacked . | . . . Hacks Repelled . | . . . Allies | -11 -10 -10 -------- Run | Yrd Mat Min Total Allies . | . . . Largest Group . | . . . Highest-Rated Group . | . . . Highest-Rated Ally . | . . . Total Orders . | . . . Ally Attacks . | . . . Total Damage . | . . . Kills . | . . . Allies Corrupted . | . . . Allies Melted . | . . . Intel | -11 -10 -10 ------- Run | Yrd Mat Min Active Infowar (turns) 847 | 45 802 . Seismic 847 | 45 802 . Robot Analysis Total . | . . . Derelict Logs Recovered . | . . . Drone Launches . | . . . Drone Recoveries . | . . . Exploration | -11 -10 -10 ------------- Run | Yrd Mat Min Turns Passed 1095 | 146 938 11 Spaces Moved 623 | 67 555 1 Core 10 | 10 . . Treads 279 | 57 222 . Legs . | . . . Wheels 334 | . 333 1 Hover . | . . . Flight . | . . . Fastest Speed 50 | 50 100 115 Average Speed 127 | 143 125 115 Slowest Speed 160 | 160 160 115 Overloaded Moves . | . . . Propulsion Burnouts . | . . . Robots Hopped . | . . . Potential Cave-ins . | . . . Cave-ins Triggered . | . . . Exploration Rate (%) 31 | 6 82 5 Regions Visited 2 Branch Regions 1 Pre-discovered Areas 3 | . 2 1 Known Exits Taken . | . . . Unknown Exits Taken 2 | 1 1 . Scrap Searched . | . . . Spaces Dug 34 | . 16 18 Terrain Destroyed 66 | . 26 40 Melee . | . . . Projectile . | . . . AOE 66 | . 26 40 Terrain Rammed . | . . . Walls Destroyed . | . . . Machines Disabled . | . . . Actions | -11 -10 -10 --------- Run | Yrd Mat Min Total 785 | 97 682 6 Wait 12 | . 12 . Move 621 | 66 554 1 Hop . | . . . Pick Up 31 | 13 18 . Fast Attach 2 | . 2 . Attach 9 | 7 2 . Detach . | . . . Swap 14 | . 13 1 Drop 15 | . 15 . Fire 81 | 11 66 4 Melee . | . . . Ram . | . . . Kick . | . . . Crush . | . . . Escape Stasis . | . . . Rewire . | . . . Trap . | . . . Miscellaneous . | . . . Route ------- -11/Scrapyard -10/Materials (discovered 3 exits: [*Mat x2] / [*Min]) -10/Mines History --------- Turn | Location | Event 8 | -11/Scrapyard | Discovered new exit (range 16) 147 | -11/Scrapyard | Entered Materials 310 | -10/Materials | Build established: Mutant 670 | -10/Materials | Discovered new exit (range 16) 768 | -10/Materials | Discovered new exit (range 6) 902 | -10/Materials | Discovered new exit (range 14) 1047 | -10/Materials | Derelicts attacked the area 1085 | -10/Materials | Entered Mines 1086 | -10/Mines | Assembled infested the area 1086 | -10/Mines | Learned location of Storage (-8) 1088 | -10/Mines | Met a Derelict bent on vengeance 1089 | -10/Mines | Core integrity fell below 50% 1092 | -10/Mines | Core integrity fell below 20% 1096 | -10/Mines | Destroyed by as-88910 with Assembled Heavy Rifle Last Messages --------------- 01088_ O4-8D5(g) slips back into the shadows. 01089_ Critical hit (Destroy). 01089_ Lgt. Armor Plating destroyed. 01090_ Ion Engine destroyed. 01090_ Com. Wheel destroyed. 01090_ as-89094 destroyed. 01090_ as-68006 destroyed. 01090_ Destroyed Asb. Hover Unit. 01090_ as-82300 destroyed. 01090_ as-79882 destroyed. 01092_ as-80154 destroyed. 01092_ as-36506 destroyed. 01092_ as-83534 destroyed. 01092_ as-76686 destroyed. 01094_ Destroyed Asb. Hover Unit. 01094_ as-34999 destroyed. 01094_ Destroyed Asb. Hover Unit. 01094_ as-81599 destroyed. 01094_ as-50270 destroyed. 01094_ as-80056 destroyed. Map ----- +----------------------------------------------------+ | | | ???????????????????????????????????????? | | ???????????????????????????????????????? | | ???????????????????????????????????????? | | ???????????????????????????????????????? | | ???????????????????????????????????????? | | ???????????????????????????????????????? | | ???????????????????????????????????????? | | ???????????????????????????????????????? | | ???????????????????????????????????????? | | ???????????????????????????????????????? | | ???????????????????????????????????????? | | ???????????????????????????????????????? | | ???????????????????????????????????????? | | ???????????????????????????????????????? | | ???????????????????????????????????????? | | ???????????????????????????????????????? | | ???????????????????????????????????????? | | ???????????????????????????????????????? | | ???????????????????????????????????????? | | ????????????????????#####??????????????? | | ???????????????????## ####??????????? | | ???????????##?????## #??????????? | | ?????????? # #####??????? | | ?????????? ##?????? | | ?????????? %aa % % @ #?????? | | ?????????? a aaa #?????? | | ?????????? a a ##?????? | | ??????????? ## #### ####??????? | | ??????????? ?????## ?????####?????????? | | ??????????????????##???????????????????? | | ???????????????????????????????????????? | | ???????????????????????????????????????? | | ???????????????????????????????????????? | | ???????????????????????????????????????? | | ???????????????????????????????????????? | | ???????????????????????????????????????? | | ???????????????????????????????????????? | | ???????????????????????????????????????? | | ???????????????????????????????????????? | | ???????????????????????????????????????? | | ???????????????????????????????????????? | | ???????????????????????????????????????? | | ???????????????????????????????????????? | | ???????????????????????????????????????? | | ???????????????????????????????????????? | | ???????????????????????????????????????? | | ???????????????????????????????????????? | | ???????????????????????????????????????? | | ???????????????????????????????????????? | +----------------------------------------------------+ Best States ------------- Heat Dissipation 25 Energy Generation 10 Energy Capacity 250 Matter Stores 300 Matter Capacity 300 Sight Range 16 Terrain Scan Density 10 Armor Coverage 150 Evasion (%) 50 Recoil Reduction 2 Item Schematics ----------------- None Robot Schematics ------------------ None Fabricated ------------ Nothing Repaired ---------- Nothing Alien Tech Used ----------------- None Achievements -------------- None Challenges ------------ None Game ------ Seed HelicalTransdimensionalLaser Manual? 0 Play Time 00:09:38 Cumulative 350.5 hours Start 2025.10.04 @ 10:34:55 End 2025.10.04 @ 10:58:51 Sessions 1 Manual Loads 0 Difficulty Rogue Special Mode None Game No. 458 Rogue 458 Adventurer 0 Explorer 0 Win Type - Total 11 Types 6/0/1/2/1/0/1/0/0/0 Lore% 87 Gallery% 83 Achievement% 70 Wizard Run 0 Options --------- Layout 0 ASCII 0 Keyboard 0 Movement Mouse Keybinds 0 Fullscreen 1 Font 18/X11 Map View 76x50 Zoom Use 0% Tactical HUD 1 Map Filters NONE Filters NONE Steam 1 RUN: a4f07aae-4ed9-4afe-9cc6-9dcc23152164